[Event "28th Hit Open-A 2024"]
[Site "Nova Gorica"]
[Date "2024.02.02"]
[Round "9.32"]
[White "Pagnutti, Lorenzo"]
[Black "Vodnik, Val"]
[Result "1-0"]
[ECO "C54"]
[WhiteElo "1859"]
[BlackElo "1661"]
[Annotator "NA"]
[PlyCount "79"]
[EventDate "2024.01.22"]
[EventType "swiss"]
[EventCountry "SLO"]
[SourceTitle "playchess.com"]
[Source "ChessBase"]
[SourceQuality "1"]
[TimeControl "5400+30"]

1. e4 {[%emt 0:00:02]} e5 {[%emt 0:00:06]} 2. Nf3 {[%emt 0:00:09]} Nc6 {[%emt 0:00:04]} 3. Bc4 {[%emt 0:00:08]} Bc5 {[%emt 0:00:04]} 4. c3 {[%emt 0:00:15]} Nf6 {[%emt 0:00:04]} 5. d3 {[%emt 0:00:11]} d6 {[%emt 0:00:04]} 6. O-O {[%emt 0:00:12]} a6 {[%emt 0:00:03]} 7. Bb3 {[%emt 0:00:21]} Ba7 {[%emt 0:00:05]} 8. h3 {[%emt 0:00:52]} h6 {[%emt 0:05:40]} 9. Re1 {[%emt 0:00:14]} g5 {[%emt 0:02:01]} 10. Nh2 {[%emt 0:01:24]} Rg8 {[%emt 0:00:35]} 11. Be3 {[%emt 0:02:43]} g4 {[%emt 0:01:44]} 12. hxg4 {[%emt 0:02:14]} Nxg4 {[%emt 0:01:41]} 13. Bxa7 {[%emt 0:01:00]} Nxh2 {[%emt 0:04:08]} 14. Qh5 {[%emt 0:00:50]} Qf6 {[%emt 0:00:14]} 15. Qxh2 {[%emt 0:03:00]} Nxa7 {[%emt 0:03:04]} 16. Nd2 {[%emt 0:00:29]} Bd7 {[%emt 0:03:08]} 17. Re3 {[%emt 0:01:02]} O-O-O {[%emt 0:05:47]} 18. Rf3 {[%emt 0:00:00]} Qg5 {[%emt 0:00:07]} 19. Nf1 {[%emt 0:01:39]} Be6 {[%emt 0:01:26]} 20. Bxe6+ {[%emt 0:01:59]} fxe6 {[%emt 0:00:02]} 21. Re1 {[%emt 0:03:02]} Nc6 {[%emt 0:01:56]} 22. Ree3 {[%emt 0:00:50]} Rdf8 {[%emt 0:02:23]} 23. Rxf8+ {[%emt 0:03:44]} Rxf8 {[%emt 0:00:03]} 24. Qh3 {[%emt 0:01:34]} Kd7 {[%emt 0:04:39]} 25. Rg3 {[%emt 0:02:15]} Qf6 {[%emt 0:00:05]} 26. Rf3 {[%emt 0:00:53]} Qg7 {[%emt 0:00:17]} 27. Ne3 {[%emt 0:01:47]} Ne7 {[%emt 0:02:39]} 28. Rxf8 {[%emt 0:02:57]} Qxf8 {[%emt 0:00:03]} 29. Qh5 {[%emt 0:02:17]} Ng8 {[%emt 0:05:21]} 30. g3 {[%emt 0:01:11]} Qg7 {[%emt 0:01:10]} 31. Kg2 {[%emt 0:03:02]} Nf6 {[%emt 0:01:24]} 32. Qd1 {[%emt 0:00:19]} Qg8 {[%emt 0:04:04]} 33. c4 {[%emt 0:01:27]} c6 {[%emt 0:00:35]} 34. Qh1 {[%emt 0:03:47]} h5 {[%emt 0:03:18]} 35. Qh4 {[%emt 0:00:27]} Qg6 {[%emt 0:00:13]} 36. f3 {[%emt 0:00:36]} d5 {[%emt 0:03:58]} 37. b3 {[%emt 0:01:21]} Kd6 {[%emt 0:07:06]} 38. Kf2 {[%emt 0:01:04]} Qh6 {[%emt 0:02:09]} 39. cxd5 {[%emt 0:01:41]} exd5 {[%emt 0:00:20]} 40. Nf5+ {[%emt 0:00:02]} 1-0

[Event "28th Hit Open-A 2024"]
[Site "Nova Gorica"]
[Date "2024.02.02"]
[Round "9.33"]
[White "Belyaletdinov, Leonard"]
[Black "Tonel, Giulia"]
[Result "0-1"]
[ECO "A40"]
[WhiteElo "1581"]
[BlackElo "1851"]
[Annotator "NA"]
[PlyCount "86"]
[EventDate "2024.01.22"]
[EventType "swiss"]
[EventCountry "SLO"]
[SourceTitle "playchess.com"]
[Source "ChessBase"]
[SourceQuality "1"]
[TimeControl "5400+30"]

1. d4 {[%emt 0:00:04]} g6 {[%emt 0:01:40]} 2. Nf3 {[%emt 0:00:09]} Bg7 {[%emt 0:00:10]} 3. Bg5 {[%emt 0:00:06]} c5 {[%emt 0:02:01]} 4. e3 {[%emt 0:00:50]} Qb6 {[%emt 0:00:50]} 5. Nc3 {[%emt 0:01:56]} Nc6 {[%emt 0:21:28]} 6. Nd5 {[%emt 0:04:33]} Qa5+ {[%emt 0:16:59]} 7. Qd2 {[%emt 0:00:05]} Qxd2+ {[%emt 0:00:35]} 8. Kxd2 {[%emt 0:00:19]} Kd8 {[%emt 0:00:35]} 9. Bf4 {[%emt 0:00:33]} cxd4 {[%emt 0:05:50]} 10. exd4 {[%emt 0:02:14]} d6 {[%emt 0:00:50]} 11. c3 {[%emt 0:00:15]} Nf6 {[%emt 0:06:41]} 12. Nxf6 {[%emt 0:00:38]} Bxf6 {[%emt 0:00:08]} 13. Re1 {[%emt 0:04:31]} h6 {[%emt 0:02:25]} 14. Bc4 {[%emt 0:00:13]} Rh7 {[%emt 0:00:20]} 15. h4 {[%emt 0:01:09]} a6 {[%emt 0:00:46]} 16. Rhg1 {[%emt 0:02:29]} Bg4 {[%emt 0:01:54]} 17. Nh2 {[%emt 0:01:39]} Bd7 {[%emt 0:00:23]} 18. Nf3 {[%emt 0:01:17]} Rc8 {[%emt 0:03:35]} 19. Bd3 {[%emt 0:00:08]} Rh8 {[%emt 0:00:18]} 20. g4 {[%emt 0:00:20]} b5 {[%emt 0:05:05]} 21. g5 {[%emt 0:02:17]} hxg5 {[%emt 0:03:16]} 22. hxg5 {[%emt 0:00:58]} Bg7 {[%emt 0:00:24]} 23. d5 {[%emt 0:00:40]} Na5 {[%emt 0:00:58]} 24. Rh1 {[%emt 0:00:47]} Nc4+ {[%emt 0:02:43]} 25. Bxc4 {[%emt 0:01:14]} Rxc4 {[%emt 0:00:07]} 26. Rxh8+ {[%emt 0:00:14]} Bxh8 {[%emt 0:00:06]} 27. Be3 {[%emt 0:00:12]} Bg4 {[%emt 0:01:28]} 28. Nh2 {[%emt 0:07:38]} Bh5 {[%emt 0:01:39]} 29. Nf1 {[%emt 0:02:33]} Bf3 {[%emt 0:03:03]} 30. Bb6+ {[%emt 0:01:07]} Kd7 {[%emt 0:00:06]} 31. Ne3 {[%emt 0:00:15]} Rh4 {[%emt 0:00:23]} 32. Rg1 {[%emt 0:09:41]} Be5 {[%emt 0:00:32]} 33. b3 {[%emt 0:00:32]} Rh2 {[%emt 0:01:59]} 34. Ng4 {[%emt 0:00:15]} Bf4+ {[%emt 0:02:21]} 35. Kd3 {[%emt 0:10:26]} Rh3 {[%emt 0:02:21]} 36. Be3 {[%emt 0:01:42]} Bxd5 {[%emt 0:01:57]} 37. c4 {[%emt 0:00:17]} bxc4+ {[%emt 0:00:45]} 38. bxc4 {[%emt 0:00:01]} Be6 {[%emt 0:00:41]} 39. Kd4 {[%emt 0:00:39]} Bf5 {[%emt 0:02:10]} 40. c5 {[%emt 0:01:07]} e5+ {[%emt 0:01:17]} 41. Kd5 {[%emt 0:00:36]} Be6+ {[%emt 0:00:19]} 42. Ke4 {[%emt 0:00:10]} d5+ {[%emt 0:00:11]} 43. Kd3 {[%emt 0:00:05]} d4 {[%emt 0:00:26]} 0-1

[Event "28th Hit Open-A 2024"]
[Site "Nova Gorica"]
[Date "2024.02.02"]
[Round "9.34"]
[White "Guid, Taja"]
[Black "Kukushkin, Ivan"]
[Result "0-1"]
[ECO "B23"]
[WhiteElo "1698"]
[BlackElo "1890"]
[Annotator "NA"]
[PlyCount "80"]
[EventDate "2024.01.22"]
[EventType "swiss"]
[EventCountry "SLO"]
[SourceTitle "playchess.com"]
[Source "ChessBase"]
[SourceQuality "1"]
[TimeControl "5400+30"]

1. e4 {[%emt 0:00:02]} c5 {[%emt 0:12:50]} 2. Nc3 {[%emt 0:00:06]} Nc6 {[%emt 0:00:05]} 3. Bb5 {[%emt 0:00:03]} Nd4 {[%emt 0:00:06]} 4. Nf3 {[%emt 0:00:05]} a6 {[%emt 0:00:04]} 5. Bd3 {[%emt 0:00:08]} g6 {[%emt 0:07:29]} 6. Rb1 {[%emt 0:00:50]} Bg7 {[%emt 0:01:30]} 7. a3 {[%emt 0:03:44]} d6 {[%emt 0:01:19]} 8. Nxd4 {[%emt 0:02:44]} cxd4 {[%emt 0:01:52]} 9. Ne2 {[%emt 0:01:19]} Bd7 {[%emt 0:06:07]} 10. b4 {[%emt 0:07:30]} e5 {[%emt 0:01:02]} 11. c3 {[%emt 0:03:09]} dxc3 {[%emt 0:03:37]} 12. dxc3 {[%emt 0:01:31]} Ne7 {[%emt 0:03:46]} 13. O-O {[%emt 0:01:44]} O-O {[%emt 0:02:27]} 14. c4 {[%emt 0:03:48]} f5 {[%emt 0:01:16]} 15. f4 {[%emt 0:05:17]} Bc6 {[%emt 0:05:07]} 16. Qc2 {[%emt 0:01:59]} Rc8 {[%emt 0:04:06]} 17. fxe5 {[%emt 0:08:07]} dxe5 {[%emt 0:00:58]} 18. exf5 {[%emt 0:02:37]} gxf5 {[%emt 0:01:22]} 19. Bxf5 {[%emt 0:02:56]} Nxf5 {[%emt 0:00:07]} 20. Rxf5 {[%emt 0:00:04]} Rxf5 {[%emt 0:00:05]} 21. Qxf5 {[%emt 0:00:04]} Qd1+ {[%emt 0:00:07]} 22. Qf1 {[%emt 0:00:10]} Qd3 {[%emt 0:00:45]} 23. Rb2 {[%emt 0:07:05]} Rf8 {[%emt 0:01:11]} 24. Qe1 {[%emt 0:00:20]} e4 {[%emt 0:03:48]} 25. Rd2 {[%emt 0:01:55]} Qe3+ {[%emt 0:01:49]} 26. Kh1 {[%emt 0:00:07]} Bc3 {[%emt 0:01:01]} 27. Qg3+ {[%emt 0:01:47]} Qxg3 {[%emt 0:00:06]} 28. Nxg3 {[%emt 0:00:09]} Bxd2 {[%emt 0:00:03]} 29. Bxd2 {[%emt 0:00:06]} Rd8 {[%emt 0:00:04]} 30. Nf1 {[%emt 0:01:12]} Rxd2 {[%emt 0:00:23]} 31. Nxd2 {[%emt 0:00:07]} e3 {[%emt 0:00:03]} 32. Nf3 {[%emt 0:01:18]} Bxf3 {[%emt 0:00:05]} 33. Kg1 {[%emt 0:00:51]} Be2 {[%emt 0:00:04]} 34. c5 {[%emt 0:00:04]} Bb5 {[%emt 0:00:04]} 35. g4 {[%emt 0:00:24]} Kf7 {[%emt 0:00:34]} 36. Kg2 {[%emt 0:00:07]} Bc6+ {[%emt 0:00:04]} 37. Kf1 {[%emt 0:00:06]} Bf3 {[%emt 0:00:05]} 38. h3 {[%emt 0:00:10]} Ke6 {[%emt 0:00:05]} 39. a4 {[%emt 0:00:10]} Kd5 {[%emt 0:00:04]} 40. b5 {[%emt 0:03:24]} axb5 {[%emt 0:01:43]} 0-1

[Event "28th Hit Open-A 2024"]
[Site "Nova Gorica"]
[Date "2024.02.02"]
[Round "9.35"]
[White "Trybus, Dominika"]
[Black "Horvath, Andras"]
[Result "0-1"]
[ECO "C45"]
[WhiteElo "1530"]
[BlackElo "1901"]
[Annotator "NA"]
[PlyCount "80"]
[EventDate "2024.01.22"]
[EventType "swiss"]
[EventCountry "SLO"]
[SourceTitle "playchess.com"]
[Source "ChessBase"]
[SourceQuality "1"]
[TimeControl "5400+30"]

1. e4 {[%emt 0:00:04]} e5 {[%emt 0:00:24]} 2. Nf3 {[%emt 0:00:07]} Nc6 {[%emt 0:00:11]} 3. d4 {[%emt 0:00:11]} exd4 {[%emt 0:00:04]} 4. Nxd4 {[%emt 0:00:03]} Bc5 {[%emt 0:00:36]} 5. Nb3 {[%emt 0:00:42]} Bb6 {[%emt 0:00:08]} 6. Nc3 {[%emt 0:00:37]} d6 {[%emt 0:00:28]} 7. Qe2 {[%emt 0:02:14]} Be6 {[%emt 0:01:15]} 8. Be3 {[%emt 0:00:59]} Nf6 {[%emt 0:01:44]} 9. f3 {[%emt 0:01:37]} Qe7 {[%emt 0:01:12]} 10. O-O-O {[%emt 0:02:49]} O-O-O {[%emt 0:00:14]} 11. Nd4 {[%emt 0:10:01]} Bd7 {[%emt 0:08:19]} 12. g4 {[%emt 0:05:49]} Nxd4 {[%emt 0:05:03]} 13. Bxd4 {[%emt 0:00:17]} Bc6 {[%emt 0:02:10]} 14. Bh3 {[%emt 0:05:11]} Kb8 {[%emt 0:06:50]} 15. Bxb6 {[%emt 0:05:28]} axb6 {[%emt 0:00:20]} 16. g5 {[%emt 0:00:17]} Nd7 {[%emt 0:02:14]} 17. Bxd7 {[%emt 0:02:04]} Qxg5+ {[%emt 0:04:09]} 18. Kb1 {[%emt 0:00:08]} Rxd7 {[%emt 0:01:09]} 19. Rhg1 {[%emt 0:01:37]} Qe5 {[%emt 0:05:55]} 20. h4 {[%emt 0:02:17]} h6 {[%emt 0:03:29]} 21. Nd5 {[%emt 0:01:47]} Re8 {[%emt 0:06:28]} 22. Qg2 {[%emt 0:02:44]} f5 {[%emt 0:01:34]} 23. c4 {[%emt 0:05:06]} fxe4 {[%emt 0:00:59]} 24. Rge1 {[%emt 0:00:25]} Bxd5 {[%emt 0:01:38]} 25. Rxd5 {[%emt 0:00:26]} Qf6 {[%emt 0:00:34]} 26. Qg4 {[%emt 0:01:08]} Rde7 {[%emt 0:01:06]} 27. fxe4 {[%emt 0:01:04]} Qe6 {[%emt 0:05:52]} 28. Qf4 {[%emt 0:02:07]} Rf7 {[%emt 0:06:47]} 29. Qg3 {[%emt 0:00:44]} Ref8 {[%emt 0:05:52]} 30. b3 {[%emt 0:01:29]} Rf2 {[%emt 0:02:28]} 31. Qxg7 {[%emt 0:01:55]} Qh3 {[%emt 0:01:04]} 32. Qxh6 {[%emt 0:13:29]} R8f3 {[%emt 0:01:03]} 33. Qh8+ {[%emt 0:03:12]} Ka7 {[%emt 0:01:47]} 34. Qa1 {[%emt 0:09:39]} Qxh4 {[%emt 0:03:31]} 35. Qd4 {[%emt 0:01:42]} c5 {[%emt 0:03:19]} 36. Qd1 {[%emt 0:02:40]} Qh2 {[%emt 0:00:33]} 37. Rd3 {[%emt 0:01:25]} Rxa2 {[%emt 0:01:15]} 38. Re2 {[%emt 0:01:49]} Rxe2 {[%emt 0:00:03]} 39. Rxf3 {[%emt 0:00:15]} Rb2+ {[%emt 0:00:09]} 40. Kc1 {[%emt 0:00:24]} Ra2 {[%emt 0:00:03]} 0-1

[Event "28th Hit Open-A 2024"]
[Site "Nova Gorica"]
[Date "2024.02.02"]
[Round "9.36"]
[White "Gricnik, Tine"]
[Black "Gergolet, Jan"]
[Result "1/2-1/2"]
[ECO "A70"]
[WhiteElo "1758"]
[BlackElo "1632"]
[Annotator "NA"]
[PlyCount "89"]
[EventDate "2024.01.22"]
[EventType "swiss"]
[EventCountry "SLO"]
[SourceTitle "playchess.com"]
[Source "ChessBase"]
[SourceQuality "1"]
[TimeControl "5400+30"]

1. d4 {[%emt 0:42:53]} Nf6 {[%emt 0:06:10]} 2. c4 {[%emt 0:00:10]} c5 {[%emt 0:00:11]} 3. d5 {[%emt 0:00:14]} e6 {[%emt 0:00:07]} 4. Nc3 {[%emt 0:03:12]} exd5 {[%emt 0:00:09]} 5. cxd5 {[%emt 0:01:16]} d6 {[%emt 0:00:08]} 6. Nf3 {[%emt 0:00:18]} g6 {[%emt 0:00:24]} 7. e4 {[%emt 0:00:24]} Bg7 {[%emt 0:00:25]} 8. Bd3 {[%emt 0:03:04]} O-O {[%emt 0:00:27]} 9. O-O {[%emt 0:00:22]} Re8 {[%emt 0:01:23]} 10. Re1 {[%emt 0:00:20]} a6 {[%emt 0:01:08]} 11. a4 {[%emt 0:00:16]} Bg4 {[%emt 0:00:57]} 12. h3 {[%emt 0:00:48]} Bxf3 {[%emt 0:00:08]} 13. Qxf3 {[%emt 0:00:08]} Nbd7 {[%emt 0:00:35]} 14. Bf4 {[%emt 0:02:27]} Ne5 {[%emt 0:01:27]} 15. Qe2 {[%emt 0:04:45]} Nfd7 {[%emt 0:05:31]} 16. a5 {[%emt 0:07:58]} Qc7 {[%emt 0:05:07]} 17. Bc4 {[%emt 0:10:14]} Nxc4 {[%emt 0:08:55]} 18. Qxc4 {[%emt 0:00:00]} Ne5 {[%emt 0:00:28]} 19. Bxe5 {[%emt 0:00:00]} Bxe5 {[%emt 0:00:30]} 20. b4 {[%emt 0:00:00]} Rac8 {[%emt 0:00:53]} 21. b5 {[%emt 0:00:00]} Bxc3 {[%emt 0:01:30]} 22. b6 {[%emt 0:00:00]} Qe7 {[%emt 0:00:06]} 23. Qxc3 {[%emt 0:00:00]} Qe5 {[%emt 0:00:18]} 24. Qxe5 {[%emt 0:00:00]} Rxe5 {[%emt 0:00:06]} 25. f4 {[%emt 0:00:00]} Re7 {[%emt 0:00:11]} 26. e5 {[%emt 0:00:00]} Rce8 {[%emt 0:00:24]} 27. Rac1 {[%emt 0:00:00]} f6 {[%emt 0:08:57]} 28. e6 {[%emt 0:00:00]} Rc8 {[%emt 0:00:23]} 29. Rc4 {[%emt 0:00:00]} Kg7 {[%emt 0:00:24]} 30. Kf2 {[%emt 0:00:00]} f5 {[%emt 0:00:13]} 31. g4 {[%emt 0:00:00]} Kf6 {[%emt 0:00:40]} 32. Rg1 {[%emt 0:00:00]} fxg4 {[%emt 0:00:56]} 33. hxg4 {[%emt 0:00:00]} h5 {[%emt 0:02:49]} 34. gxh5 {[%emt 0:00:00]} gxh5 {[%emt 0:00:02]} 35. Rg5 {[%emt 0:00:00]} Rh8 {[%emt 0:02:37]} 36. Kg3 {[%emt 0:00:00]} h4+ {[%emt 0:02:13]} 37. Kh3 {[%emt 0:00:00]} Rg7 {[%emt 0:01:16]} 38. Rxg7 {[%emt 0:00:00]} Kxg7 {[%emt 0:00:00]} 39. Re4 {[%emt 0:00:00]} Rc8 {[%emt 0:00:12]} 40. Kxh4 {[%emt 0:00:00]} c4 {[%emt 0:00:11]} 41. Re2 {[%emt 0:00:00]} c3 {[%emt 0:00:13]} 42. Rc2 {[%emt 0:00:00]} Kf6 {[%emt 0:00:18]} 43. f5 {[%emt 0:01:16]} Rc5 {[%emt 0:00:06]} 44. Re2 {[%emt 0:00:03]} c2 {[%emt 0:00:09]} 45. e7 1/2-1/2

[Event "28th Hit Open-A 2024"]
[Site "Nova Gorica"]
[Date "2024.02.02"]
[Round "9.37"]
[White "Vicic, Mark"]
[Black "Beber, Anja"]
[Result "0-1"]
[ECO "A12"]
[WhiteElo "1729"]
[BlackElo "1606"]
[Annotator "NA RC"]
[PlyCount "36"]
[EventDate "2024.01.22"]
[EventType "swiss"]
[EventCountry "SLO"]
[SourceTitle "playchess.com"]
[Source "ChessBase"]
[SourceQuality "1"]
[TimeControl "5400+30"]

1. b3 {[%emt 0:00:02]} d5 {[%emt 0:00:31]} 2. Bb2 {[%emt 0:00:12]} Bf5 {[%emt 0:00:19]} 3. Nf3 {[%emt 0:00:06]} e6 {[%emt 0:00:35]} 4. g3 {[%emt 0:00:53]} h6 {[%emt 0:00:37]} 5. Bg2 {[%emt 0:00:11]} Nf6 {[%emt 0:00:25]} 6. O-O {[%emt 0:00:36]} Nbd7 {[%emt 0:02:04]} 7. c4 {[%emt 0:07:10]} c6 {[%emt 0:01:33]} 8. d3 {[%emt 0:02:02]} Bd6 {[%emt 0:00:28]} 9. cxd5 {[%emt 0:08:16]} cxd5 {[%emt 0:04:35]} 10. e4 {[%emt 0:15:46]} Bg4 {[%emt 0:11:47]} 11. h3 {[%emt 0:04:23]} Bxf3 {[%emt 0:00:14]} 12. Bxf3 {[%emt 0:02:19]} O-O {[%emt 0:01:05]} 13. Re1 {[%emt 0:03:15]} dxe4 {[%emt 0:05:07]} 14. dxe4 {[%emt 0:01:31]} Be5 {[%emt 0:00:12]} 15. Nc3 {[%emt 0:04:50]} Qa5 {[%emt 0:01:14]} 16. Na4 {[%emt 0:01:31]} b5 {[%emt 0:01:50]} 17. Bxe5 {[%emt 0:07:49]} Nxe5 {[%emt 0:00:10]} 18. Bg2 {[%emt 0:06:02]} Rad8 {[%emt 0:03:41]} 0-1

[Event "28th Hit Open-A 2024"]
[Site "Nova Gorica"]
[Date "2024.02.02"]
[Round "9.38"]
[White "Petrosino, Germano"]
[Black "Milicevic, Zoran"]
[Result "1-0"]
[ECO "D21"]
[WhiteElo "1715"]
[BlackElo "1550"]
[Annotator "NA"]
[PlyCount "63"]
[EventDate "2024.01.22"]
[EventType "swiss"]
[EventCountry "SLO"]
[SourceTitle "playchess.com"]
[Source "ChessBase"]
[SourceQuality "1"]
[TimeControl "5400+30"]

1. d4 {[%emt 0:00:02]} d5 {[%emt 0:00:24]} 2. c4 {[%emt 0:00:12]} dxc4 {[%emt 0:00:11]} 3. e4 {[%emt 0:00:08]} g6 {[%emt 0:01:11]} 4. Bxc4 {[%emt 0:00:52]} Bg7 {[%emt 0:00:16]} 5. Nf3 {[%emt 0:00:27]} e6 {[%emt 0:02:42]} 6. O-O {[%emt 0:05:11]} Ne7 {[%emt 0:00:30]} 7. Nc3 {[%emt 0:01:18]} O-O {[%emt 0:00:12]} 8. Bg5 {[%emt 0:00:26]} a6 {[%emt 0:01:48]} 9. a4 {[%emt 0:01:35]} b6 {[%emt 0:00:48]} 10. Qe2 {[%emt 0:01:03]} Bb7 {[%emt 0:00:22]} 11. Rfd1 {[%emt 0:00:13]} Re8 {[%emt 0:04:40]} 12. Rac1 {[%emt 0:03:05]} c6 {[%emt 0:11:51]} 13. e5 {[%emt 0:03:00]} b5 {[%emt 0:02:03]} 14. Bb3 {[%emt 0:01:30]} Qb6 {[%emt 0:01:10]} 15. Bxe7 {[%emt 0:03:29]} Rxe7 {[%emt 0:00:23]} 16. Ne4 {[%emt 0:00:18]} Rd7 {[%emt 0:02:07]} 17. Nc5 {[%emt 0:04:11]} Rd8 {[%emt 0:00:44]} 18. a5 {[%emt 0:00:42]} Qc7 {[%emt 0:00:51]} 19. Ng5 {[%emt 0:08:21]} Bc8 {[%emt 0:04:15]} 20. Qf3 {[%emt 0:02:31]} Qe7 {[%emt 0:00:52]} 21. Nce4 {[%emt 0:01:52]} h6 {[%emt 0:01:54]} 22. Nf6+ {[%emt 0:01:31]} Bxf6 {[%emt 0:01:35]} 23. exf6 {[%emt 0:00:07]} Qb4 {[%emt 0:00:50]} 24. Ne4 {[%emt 0:01:19]} Rxd4 {[%emt 0:01:16]} 25. Rxd4 {[%emt 0:01:11]} Qxd4 {[%emt 0:04:48]} 26. Rd1 {[%emt 0:00:05]} Qb4 {[%emt 0:02:35]} 27. Rd8+ {[%emt 0:00:16]} Kh7 {[%emt 0:00:20]} 28. Qe3 {[%emt 0:03:45]} g5 {[%emt 0:03:10]} 29. Nxg5+ {[%emt 0:01:46]} Kg6 {[%emt 0:08:29]} 30. Ne4 {[%emt 0:01:52]} Nd7 {[%emt 0:04:44]} 31. Rg8+ {[%emt 0:01:12]} Kf5 {[%emt 0:02:18]} 32. g4+ {[%emt 0:00:13]} 1-0

[Event "28th Hit Open-A 2024"]
[Site "Nova Gorica"]
[Date "2024.02.02"]
[Round "9.39"]
[White "Cokan, Mirko"]
[Black "Zlatanovic, Marcus"]
[Result "0-1"]
[ECO "B20"]
[WhiteElo "1614"]
[BlackElo "1745"]
[Annotator "NA"]
[PlyCount "84"]
[EventDate "2024.01.22"]
[EventType "swiss"]
[EventCountry "SLO"]
[SourceTitle "playchess.com"]
[Source "ChessBase"]
[SourceQuality "1"]
[TimeControl "5400+30"]

1. e4 {[%emt 0:00:23]} c5 {[%emt 0:00:10]} 2. a3 {[%emt 0:01:19]} Nc6 {[%emt 0:01:27]} 3. b4 {[%emt 0:00:34]} cxb4 {[%emt 0:01:38]} 4. axb4 {[%emt 0:00:50]} Nxb4 {[%emt 0:01:49]} 5. c3 {[%emt 0:00:37]} Nc6 {[%emt 0:00:36]} 6. d4 {[%emt 0:00:14]} d5 {[%emt 0:00:36]} 7. exd5 {[%emt 0:00:31]} Qxd5 {[%emt 0:00:12]} 8. Na3 {[%emt 0:00:19]} e6 {[%emt 0:34:25]} 9. Nb5 {[%emt 0:01:20]} Bd6 {[%emt 0:00:06]} 10. c4 {[%emt 0:22:25]} Qe4+ {[%emt 0:13:11]} 11. Be2 {[%emt 0:00:46]} Bb8 {[%emt 0:00:14]} 12. Nf3 {[%emt 0:01:58]} Nge7 {[%emt 0:01:47]} 13. O-O {[%emt 0:01:06]} O-O {[%emt 0:01:59]} 14. Bd3 {[%emt 0:01:13]} Qg4 {[%emt 0:00:10]} 15. Bxh7+ {[%emt 0:03:02]} Kh8 {[%emt 0:00:34]} 16. Bd3 {[%emt 0:00:41]} Bd7 {[%emt 0:07:39]} 17. Be2 {[%emt 0:00:36]} Qg6 {[%emt 0:01:52]} 18. Re1 {[%emt 0:03:09]} a6 {[%emt 0:04:59]} 19. Bd3 {[%emt 0:00:48]} Qh5 {[%emt 0:00:39]} 20. c5 {[%emt 0:00:53]} Bxh2+ {[%emt 0:02:17]} 21. Kf1 {[%emt 0:04:38]} axb5 {[%emt 0:00:33]} 22. Rb1 {[%emt 0:03:52]} e5 {[%emt 0:14:13]} 23. Be2 {[%emt 0:00:50]} Bf4 {[%emt 0:01:12]} 24. Bxf4 {[%emt 0:02:13]} exf4 {[%emt 0:00:13]} 25. Kg1 {[%emt 0:02:03]} Bg4 {[%emt 0:01:15]} 26. Rb3 {[%emt 0:03:02]} Rad8 {[%emt 0:02:44]} 27. Qc1 {[%emt 0:03:43]} Nd5 {[%emt 0:01:59]} 28. Nh2 {[%emt 0:00:18]} f3 {[%emt 0:04:18]} 29. Bxf3 {[%emt 0:02:13]} Bxf3 {[%emt 0:01:37]} 30. Rxf3 {[%emt 0:00:02]} Qg6 {[%emt 0:00:12]} 31. Rg3 {[%emt 0:00:32]} Qf6 {[%emt 0:00:45]} 32. Qd1 {[%emt 0:00:03]} Nce7 {[%emt 0:00:34]} 33. Re4 {[%emt 0:00:23]} Ng6 {[%emt 0:00:32]} 34. Qh5+ {[%emt 0:01:08]} Kg8 {[%emt 0:00:04]} 35. Rh3 {[%emt 0:00:21]} Rfe8 {[%emt 0:00:10]} 36. Rxe8+ {[%emt 0:01:18]} Rxe8 {[%emt 0:00:10]} 37. Qxd5 {[%emt 0:00:00]} Nf4 {[%emt 0:00:54]} 38. Qf3 {[%emt 0:02:31]} Nxh3+ {[%emt 0:00:25]} 39. Qxh3 {[%emt 0:00:02]} Qxd4 {[%emt 0:00:40]} 40. Nf3 {[%emt 0:01:27]} Qxc5 {[%emt 0:00:26]} 41. Qh4 {[%emt 0:01:22]} Qc1+ {[%emt 0:00:33]} 42. Kh2 {[%emt 0:00:08]} Qh6 {[%emt 0:00:08]} 0-1

[Event "28th Hit Open-A 2024"]
[Site "Nova Gorica"]
[Date "2024.02.02"]
[Round "9.40"]
[White "Mulec, Dejan"]
[Black "Bajec, Borut"]
[Result "0-1"]
[ECO "D00"]
[WhiteElo "1577"]
[BlackElo "1703"]
[Annotator "NA"]
[PlyCount "57"]
[EventDate "2024.01.22"]
[EventType "swiss"]
[EventCountry "SLO"]
[SourceTitle "playchess.com"]
[Source "ChessBase"]
[SourceQuality "1"]
[TimeControl "5400+30"]

1. d4 {[%emt 0:00:05]} d5 {[%emt 0:00:12]} 2. Nc3 {[%emt 0:00:24]} e6 {[%emt 0:00:58]} 3. Bf4 {[%emt 0:00:08]} Nf6 {[%emt 0:00:24]} 4. Nb5 {[%emt 0:00:39]} Na6 {[%emt 0:00:12]} 5. e3 {[%emt 0:00:13]} Be7 {[%emt 0:02:54]} 6. Nf3 {[%emt 0:00:29]} O-O {[%emt 0:00:50]} 7. Ne5 {[%emt 0:00:25]} c6 {[%emt 0:00:32]} 8. Nc3 {[%emt 0:00:40]} Nb8 {[%emt 0:00:17]} 9. Bd3 {[%emt 0:02:57]} Nbd7 {[%emt 0:00:27]} 10. Qf3 {[%emt 0:06:00]} Re8 {[%emt 0:04:08]} 11. g4 {[%emt 0:03:00]} Nf8 {[%emt 0:00:31]} 12. g5 {[%emt 0:01:41]} N6d7 {[%emt 0:00:15]} 13. Nxf7 {[%emt 0:06:35]} Qb6 {[%emt 0:04:42]} 14. Rb1 {[%emt 0:07:27]} Ng6 {[%emt 0:00:45]} 15. Qh5 {[%emt 0:17:01]} Kxf7 {[%emt 0:00:54]} 16. Qxh7 {[%emt 0:00:29]} Ndf8 {[%emt 0:00:23]} 17. Qh5 {[%emt 0:02:40]} Qd8 {[%emt 0:01:54]} 18. Rg1 {[%emt 0:03:17]} Bd6 {[%emt 0:02:47]} 19. Be5 {[%emt 0:06:26]} c5 {[%emt 0:02:39]} 20. Rg3 {[%emt 0:01:49]} Bxe5 {[%emt 0:00:54]} 21. dxe5 {[%emt 0:01:26]} Ke7 {[%emt 0:00:20]} 22. Bxg6 {[%emt 0:00:59]} Nxg6 {[%emt 0:00:15]} 23. Qxg6 {[%emt 0:00:16]} Kd7 {[%emt 0:00:07]} 24. Nxd5 {[%emt 0:07:07]} Kc6 {[%emt 0:03:34]} 25. Rd1 {[%emt 0:01:49]} Bd7 {[%emt 0:00:32]} 26. Nc3 {[%emt 0:00:34]} Rc8 {[%emt 0:01:11]} 27. Qe4+ {[%emt 0:01:01]} Kc7 {[%emt 0:00:13]} 28. Qd3 {[%emt 0:04:13]} Re7 {[%emt 0:00:35]} 29. Qd6# {[%emt 0:00:26]} 0-1